[Event "6th Uppsala Young Champions 2019"]
[Site "Uppsala"]
[Date "2019.10.28"]
[Round "6.15"]
[White "Mitra, Akash"]
[Black "Ostlund, Joar"]
[Result "1-0"]
[ECO "B00"]
[WhiteElo "1936"]
[BlackElo "1955"]
[Annotator "NA RC"]
[PlyCount "59"]
[EventDate "2019.10.25"]
[EventType "swiss"]
[EventCountry "SWE"]
[SourceTitle "playchess.com"]
[Source "ChessBase"]
[SourceQuality "1"]
[TimeControl "5400+30"]

1. e4 {[%emt 1:30:30]} e5 {[%emt 1:30:30]} 2. Nf3 {[%emt 0:00:30]} Nc6 {[%emt 0:00:30]} 3. Nc3 {[%emt 0:00:30]} Nf6 {[%emt 0:00:30]} 4. Be2 {[%emt 0:00:30]} d6 {[%emt 0:00:30]} 5. d4 {[%emt 0:00:30]} Bg4 {[%emt 0:00:30]} 6. d5 {[%emt 0:00:30]} Bxf3 {[%emt 0:00:30]} 7. Bxf3 {[%emt 0:00:30]} Nd4 {[%emt 0:00:30]} 8. Be3 Nxf3+ {[%emt 0:00:30]} 9. Qxf3 {[%emt 0:01:00]} g6 {[%emt 0:00:30]} 10. O-O-O {[%emt 0:00:30]} Bg7 {[%emt 0:00:30]} 11. Kb1 {[%emt 0:00:30]} Qd7 {[%emt 0:00:30]} 12. h3 {[%emt 0:00:30]} O-O {[%emt 0:00:30]} 13. Rd3 {[%emt 0:00:30]} b5 {[%emt 0:00:30]} 14. Bg5 {[%emt 0:00:30]} Ne8 {[%emt 0:00:30]} 15. g4 {[%emt 0:00:30]} b4 {[%emt 0:00:30]} 16. Ne2 {[%emt 0:00:30]} a5 {[%emt 0:00:30]} 17. h4 {[%emt 0:00:30]} c5 {[%emt 0:00:30]} 18. dxc6 {[%emt 0:00:30]} Qxc6 {[%emt 0:00:30]} 19. Be7 {[%emt 0:00:30]} a4 {[%emt 0:00:30]} 20. Bxf8 {[%emt 0:00:30]} Bxf8 {[%emt 0:00:30]} 21. c3 {[%emt 0:00:30]} bxc3 {[%emt 0:00:30]} 22. Nxc3 {[%emt 0:00:30]} Nc7 {[%emt 0:00:30]} 23. h5 {[%emt 0:00:30]} Ne6 {[%emt 0:00:30]} 24. Nd5 {[%emt 0:00:30]} Nd4 {[%emt 0:00:30]} 25. Rxd4 {[%emt 0:00:30]} exd4 {[%emt 0:00:30]} 26. hxg6 {[%emt 0:00:30]} fxg6 {[%emt 0:00:30]} 27. Nf6+ {[%emt 0:00:30]} Kf7 {[%emt 0:00:30]} 28. Rxh7+ {[%emt 0:00:30]} Bg7 {[%emt 0:00:30]} 29. Nd5+ {[%emt 0:00:30]} Ke8 {[%emt 0:00:30]} 30. Rxg7 {[%emt 0:00:30]} 1-0

[Event "6th Uppsala Young Champions 2019"]
[Site "Uppsala"]
[Date "2019.10.28"]
[Round "6.16"]
[White "Grahn, Vidar"]
[Black "Skahlberg Bjerknes-Lima de Far, Warg"]
[Result "1-0"]
[ECO "B78"]
[WhiteElo "1926"]
[BlackElo "1637"]
[Annotator "NA RC"]
[PlyCount "111"]
[EventDate "2019.10.25"]
[EventType "swiss"]
[EventCountry "SWE"]
[SourceTitle "playchess.com"]
[Source "ChessBase"]
[SourceQuality "1"]
[TimeControl "5400+30"]

1. e4 {[%emt 1:30:30]} c5 {[%emt 1:30:30]} 2. Nf3 {[%emt 0:00:30]} Nc6 {[%emt 0:00:30]} 3. d4 {[%emt 0:00:30]} cxd4 {[%emt 0:00:30]} 4. Nxd4 {[%emt 0:00:30]} d6 {[%emt 0:00:30]} 5. Nc3 {[%emt 0:00:30]} g6 {[%emt 0:00:30]} 6. Be3 {[%emt 0:00:30]} Bg7 {[%emt 0:00:30]} 7. Bc4 {[%emt 0:00:30]} Nf6 {[%emt 0:00:30]} 8. f3 {[%emt 0:00:30]} Bd7 {[%emt 0:00:30]} 9. Qd2 {[%emt 0:00:30]} O-O {[%emt 0:00:30]} 10. O-O-O {[%emt 0:00:30]} a6 {[%emt 0:00:30]} 11. g4 {[%emt 0:00:30]} Rc8 {[%emt 0:00:30]} 12. Bb3 {[%emt 0:00:30]} Be8 {[%emt 0:00:30]} 13. h4 {[%emt 0:00:30]} b5 {[%emt 0:00:30]} 14. h5 {[%emt 0:00:30]} b4 {[%emt 0:00:30]} 15. Nd5 {[%emt 0:00:30]} e6 {[%emt 0:00:30]} 16. Nxf6+ {[%emt 0:00:30]} Qxf6 {[%emt 0:00:30]} 17. hxg6 {[%emt 0:00:30]} Qxg6 {[%emt 0:00:30]} 18. Rh3 {[%emt 0:00:30]} Qf6 {[%emt 0:00:30]} 19. Qh2 {[%emt 0:00:30]} h6 {[%emt 0:00:30]} 20. g5 {[%emt 0:00:30]} Qe5 {[%emt 0:00:30]} 21. gxh6 {[%emt 0:00:30]} Qxh2 {[%emt 0:00:30]} 22. Rxh2 {[%emt 0:00:30]} Bxd4 {[%emt 0:00:30]} 23. Bxd4 {[%emt 0:00:30]} Nxd4 {[%emt 0:00:30]} 24. Rxd4 {[%emt 0:00:30]} a5 {[%emt 0:00:30]} 25. a4 {[%emt 0:00:30]} Rd8 {[%emt 0:00:30]} 26. h7+ {[%emt 0:00:30]} Kh8 {[%emt 0:00:30]} 27. Rhd2 {[%emt 0:00:30]} Bc6 {[%emt 0:00:30]} 28. Rxd6 {[%emt 0:00:30]} Rxd6 {[%emt 0:00:30]} 29. Rxd6 {[%emt 0:00:30]} Rc8 {[%emt 0:00:30]} 30. Rd1 {[%emt 0:00:30]} Kxh7 {[%emt 0:00:30]} 31. Rg1 {[%emt 0:00:30]} Rg8 {[%emt 0:00:30]} 32. Rh1+ {[%emt 0:00:30]} Kg7 {[%emt 0:00:30]} 33. Kd2 {[%emt 0:00:30]} Rd8+ {[%emt 0:00:30]} 34. Ke3 {[%emt 0:00:30]} Kg6 {[%emt 0:00:30]} 35. Rc1 {[%emt 0:00:30]} Rd6 {[%emt 0:00:30]} 36. c3 {[%emt 0:00:30]} e5 {[%emt 0:00:30]} 37. cxb4 {[%emt 0:00:30]} axb4 {[%emt 0:00:30]} 38. Rc4 {[%emt 0:00:30]} Bd7 {[%emt 0:00:30]} 39. Rxb4 {[%emt 0:00:30]} Ra6 {[%emt 0:00:30]} 40. Bc2 {[%emt 0:00:30]} Rc6 {[%emt 0:00:30]} 41. Bd3 {[%emt 0:00:30]} Rc1 {[%emt 0:00:30]} 42. a5 {[%emt 0:00:30]} Ra1 {[%emt 0:00:30]} 43. a6 {[%emt 0:00:30]} Bc8 {[%emt 0:00:30]} 44. Rb8 {[%emt 0:00:30]} Be6 {[%emt 0:00:30]} 45. Rb7 {[%emt 0:00:30]} Bc8 {[%emt 0:00:30]} 46. Rc7 {[%emt 0:00:30]} Bxa6 {[%emt 0:00:30]} 47. Rc6+ {[%emt 0:00:30]} f6 {[%emt 0:00:30]} 48. Rxa6 {[%emt 0:00:30]} Rh1 {[%emt 0:00:30]} 49. b4 {[%emt 0:00:30]} Rh2 {[%emt 0:00:30]} 50. Rb6 {[%emt 0:00:30]} Rb2 {[%emt 0:00:30]} 51. b5 {[%emt 0:00:30]} Kf7 {[%emt 0:00:30]} 52. Rb8 {[%emt 0:00:30]} Ke7 {[%emt 0:00:30]} 53. Rh8 {[%emt 0:00:30]} Rb4 {[%emt 0:00:30]} 54. Kd2 {[%emt 0:00:30]} Ra4 {[%emt 0:00:30]} 55. b6 {[%emt 0:00:30]} Kd6 {[%emt 0:00:30]} 56. b7 {[%emt 0:00:30]} 1-0

[Event "6th Uppsala Young Champions 2019"]
[Site "Uppsala"]
[Date "2019.10.29"]
[Round "7.3"]
[White "Abdrlauf, Elham"]
[Black "Thorhallsson, Simon"]
[Result "0-1"]
[ECO "C01"]
[WhiteElo "2213"]
[BlackElo "2190"]
[Annotator "ChessBase"]
[PlyCount "118"]
[EventDate "2019.10.25"]
[EventType "swiss"]
[EventCountry "SWE"]
[SourceTitle "playchess.com"]
[Source "ChessBase"]
[SourceQuality "1"]
[TimeControl "5400+30"]

1. e4 {[%emt 0:01:59]} e6 {[%emt 0:00:00]} 2. c4 {[%emt 0:01:06]} d5 {[%emt 0:06:19]} 3. exd5 {[%emt 0:00:09]} exd5 {[%emt 0:00:05]} 4. d4 {[%emt 0:00:01]} Bb4+ {[%emt 0:00:28]} 5. Nc3 {[%emt 0:00:51]} Nf6 {[%emt 0:01:09]} 6. Bd3 {[%emt 0:04:02]} O-O {[%emt 0:00:20]} 7. Nge2 {[%emt 0:00:08]} dxc4 {[%emt 0:05:06]} 8. Bxc4 {[%emt 0:00:17]} h6 {[%emt 0:01:09]} 9. O-O {[%emt 0:00:18]} Nc6 {[%emt 0:01:58]} 10. Bf4 {[%emt 0:04:19]} Bd6 {[%emt 0:07:27]} 11. d5 {[%emt 0:05:39]} Bxf4 {[%emt 0:07:49]} 12. Nxf4 {[%emt 0:00:12]} Ne7 {[%emt 0:02:27]} 13. Qb3 {[%emt 0:06:28]} Qd6 {[%emt 0:03:09]} 14. g3 {[%emt 0:05:35]} a6 {[%emt 0:01:44]} 15. a4 {[%emt 0:00:29]} Bg4 {[%emt 0:07:21]} 16. Rfe1 {[%emt 0:03:00]} Nf5 {[%emt 0:03:27]} 17. Ne4 {[%emt 0:05:00]} Nxe4 {[%emt 0:03:55]} 18. Rxe4 {[%emt 0:00:02]} Qf6 {[%emt 0:07:48]} 19. h3 {[%emt 0:19:35]} Nd6 {[%emt 0:02:14]} 20. Re3 {[%emt 0:00:04]} Bd7 {[%emt 0:01:46]} 21. Bf1 {[%emt 0:00:25]} Rae8 {[%emt 0:00:57]} 22. Rxe8 {[%emt 0:01:57]} Rxe8 {[%emt 0:01:49]} 23. Rc1 {[%emt 0:00:16]} Rc8 {[%emt 0:01:36]} 24. Bg2 {[%emt 0:03:38]} Qd4 {[%emt 0:01:06]} 25. a5 {[%emt 0:02:25]} Qd2 {[%emt 0:01:06]} 26. Qc3 {[%emt 0:04:39]} Qxc3 {[%emt 0:00:49]} 27. Rxc3 {[%emt 0:00:09]} Nb5 {[%emt 0:00:38]} 28. Rc1 {[%emt 0:00:02]} Kf8 {[%emt 0:02:49]} 29. Nd3 {[%emt 0:04:37]} Nd4 {[%emt 0:01:11]} 30. Rc4 {[%emt 0:00:06]} Ne2+ {[%emt 0:01:13]} 31. Kf1 {[%emt 0:01:39]} Bb5 {[%emt 0:00:04]} 32. b3 {[%emt 0:01:01]} Bxc4 {[%emt 0:00:25]} 33. bxc4 {[%emt 0:00:01]} Nd4 {[%emt 0:00:31]} 34. Nc5 {[%emt 0:00:10]} Ke7 {[%emt 0:02:54]} 35. Nxb7 {[%emt 0:00:18]} c6 {[%emt 0:02:17]} 36. Ke1 {[%emt 0:12:22]} cxd5 {[%emt 0:00:39]} 37. Bxd5 {[%emt 0:03:44]} Nb3 {[%emt 0:01:11]} 38. Ke2 {[%emt 0:02:01]} Nc5 {[%emt 0:00:10]} 39. Ke3 {[%emt 0:00:32]} Rc7 {[%emt 0:00:30]} 40. Nxc5 {[%emt 0:00:18]} Rxc5 {[%emt 0:00:05]} 41. Kd4 {[%emt 0:00:02]} Rxa5 {[%emt 0:00:12]} 42. c5 {[%emt 0:00:09]} Ra1 {[%emt 0:00:29]} 43. Bc4 {[%emt 0:00:31]} a5 {[%emt 0:01:30]} 44. Bb5 {[%emt 0:01:36]} a4 {[%emt 0:02:55]} 45. Kc3 {[%emt 0:00:09]} a3 {[%emt 0:00:24]} 46. Ba4 {[%emt 0:00:16]} Rf1 {[%emt 0:01:40]} 47. Kb3 {[%emt 0:00:11]} Rxf2 {[%emt 0:00:12]} 48. Kxa3 {[%emt 0:00:17]} Rf3+ {[%emt 0:00:14]} 49. Kb4 {[%emt 0:00:01]} Kd8 {[%emt 0:00:49]} 50. Kb5 {[%emt 0:00:18]} Kc7 {[%emt 0:00:09]} 51. Bd1 {[%emt 0:01:14]} Rxg3 {[%emt 0:00:16]} 52. Bg4 {[%emt 0:00:02]} g6 {[%emt 0:00:17]} 53. Bd1 {[%emt 0:00:33]} Rxh3 {[%emt 0:00:13]} 54. c6 {[%emt 0:00:11]} f5 {[%emt 0:00:20]} 55. Kc5 {[%emt 0:00:07]} Rc3+ {[%emt 0:00:16]} 56. Kd5 {[%emt 0:00:03]} Rd3+ {[%emt 0:00:21]} 57. Ke5 {[%emt 0:00:09]} Rxd1 {[%emt 0:00:15]} 58. Kf6 {[%emt 0:00:07]} f4 {[%emt 0:00:19]} 59. Kg7 {[%emt 0:00:04]} f3 {[%emt 0:20:58]} 0-1

[Event "6th Uppsala Young Champions 2019"]
[Site "Uppsala"]
[Date "2019.10.29"]
[Round "7.4"]
[White "Berglind, Axel"]
[Black "Sorensen, Hampus"]
[Result "0-1"]
[ECO "D11"]
[WhiteElo "2062"]
[BlackElo "2330"]
[Annotator "RC"]
[PlyCount "94"]
[EventDate "2019.10.25"]
[EventType "swiss"]
[EventCountry "SWE"]
[SourceTitle "playchess.com"]
[Source "ChessBase"]
[SourceQuality "1"]
[TimeControl "5400+30"]

1. d4 {[%emt 0:00:00]} d5 {[%emt 0:00:04]} 2. Nf3 {[%emt 0:00:00]} Nf6 {[%emt 0:00:57]} 3. g3 {[%emt 0:00:01]} c6 {[%emt 0:01:22]} 4. Bg2 {[%emt 0:00:11]} Bf5 {[%emt 0:01:04]} 5. O-O {[%emt 0:00:14]} e6 {[%emt 0:01:13]} 6. c4 {[%emt 0:00:12]} Nbd7 {[%emt 0:00:55]} 7. b3 {[%emt 0:00:47]} Be7 {[%emt 0:02:51]} 8. e3 {[%emt 0:00:07]} h6 {[%emt 0:03:21]} 9. Bb2 {[%emt 0:01:21]} O-O {[%emt 0:00:44]} 10. Qe2 {[%emt 0:00:21]} a5 {[%emt 0:04:09]} 11. Nc3 {[%emt 0:04:43]} Qb6 {[%emt 0:04:27]} 12. Nh4 {[%emt 0:09:42]} Bh7 {[%emt 0:01:06]} 13. f4 {[%emt 0:01:31]} Rad8 {[%emt 0:07:43]} 14. Rad1 {[%emt 0:08:25]} Qa6 {[%emt 0:02:57]} 15. f5 {[%emt 0:15:18]} Rfe8 {[%emt 0:09:03]} 16. fxe6 {[%emt 0:06:28]} fxe6 {[%emt 0:00:02]} 17. e4 {[%emt 0:00:33]} dxc4 {[%emt 0:05:19]} 18. bxc4 {[%emt 0:15:44]} e5 {[%emt 0:00:19]} 19. d5 {[%emt 0:00:24]} Nb6 {[%emt 0:03:53]} 20. Nf5 {[%emt 0:18:03]} Bxf5 {[%emt 0:08:24]} 21. Rxf5 {[%emt 0:00:10]} Qxc4 {[%emt 0:01:15]} 22. Kh1 {[%emt 0:01:02]} Qxe2 {[%emt 0:03:13]} 23. Nxe2 {[%emt 0:00:05]} Nc4 {[%emt 0:01:14]} 24. Bc1 {[%emt 0:00:46]} Nd6 {[%emt 0:00:36]} 25. Rff1 {[%emt 0:06:45]} Ndxe4 {[%emt 0:00:50]} 26. Bb2 {[%emt 0:00:31]} Bc5 {[%emt 0:01:29]} 27. Nc3 {[%emt 0:00:32]} Nf2+ {[%emt 0:01:18]} 28. Rxf2 {[%emt 0:00:05]} Bxf2 {[%emt 0:00:02]} 29. dxc6 {[%emt 0:00:07]} bxc6 {[%emt 0:00:46]} 30. Bxc6 {[%emt 0:00:05]} Rxd1+ {[%emt 0:01:17]} 31. Nxd1 {[%emt 0:00:05]} Rc8 {[%emt 0:00:16]} 32. Bb7 {[%emt 0:00:12]} Rb8 {[%emt 0:03:48]} 33. Bxe5 {[%emt 0:00:05]} Rxb7 {[%emt 0:00:07]} 34. Nxf2 {[%emt 0:00:04]} Nd5 {[%emt 0:00:22]} 35. Kg2 {[%emt 0:00:16]} Nb4 {[%emt 0:01:00]} 36. a3 {[%emt 0:00:07]} Nc2 {[%emt 0:00:31]} 37. Bd6 {[%emt 0:00:06]} Ne3+ {[%emt 0:01:10]} 38. Kf3 {[%emt 0:00:23]} Nc4 {[%emt 0:00:13]} 39. Bc5 {[%emt 0:00:21]} Nxa3 {[%emt 0:00:38]} 40. Ke3 {[%emt 0:00:29]} Nb5 {[%emt 0:02:51]} 41. Kd3 {[%emt 0:00:07]} Nc7 {[%emt 0:00:15]} 42. Kc4 {[%emt 0:00:15]} Ne6 {[%emt 0:00:12]} 43. Ba3 {[%emt 0:00:24]} Rc7+ {[%emt 0:02:03]} 44. Kb5 {[%emt 0:00:36]} Rc2 {[%emt 0:00:13]} 45. Ne4 {[%emt 0:00:04]} Rxh2 {[%emt 0:00:23]} 46. Kxa5 {[%emt 0:00:05]} Re2 {[%emt 0:00:22]} 47. Nd6 {[%emt 0:00:08]} Re3 {[%emt 0:00:16]} 0-1

[Event "6th Uppsala Young Champions 2019"]
[Site "Uppsala"]
[Date "2019.10.29"]
[Round "7.5"]
[White "Papunidi, Matvey"]
[Black "Crevatin, Leo"]
[Result "1/2-1/2"]
[ECO "A11"]
[WhiteElo "2083"]
[BlackElo "2221"]
[Annotator "ChessBase"]
[PlyCount "61"]
[EventDate "2019.10.25"]
[EventType "swiss"]
[EventCountry "SWE"]
[SourceTitle "playchess.com"]
[Source "ChessBase"]
[SourceQuality "1"]
[TimeControl "5400+30"]

1. c4 {[%emt 1:30:30]} c6 {[%emt 1:30:30]} 2. Nc3 {[%emt 0:00:30]} d5 {[%emt 0:00:30]} 3. e3 {[%emt 0:00:30]} Nf6 {[%emt 0:00:30]} 4. Nf3 {[%emt 0:00:30]} e6 {[%emt 0:00:30]} 5. b3 {[%emt 0:00:30]} Bd6 {[%emt 0:00:30]} 6. Bb2 {[%emt 0:00:30]} O-O {[%emt 0:00:30]} 7. Be2 {[%emt 0:00:30]} e5 {[%emt 0:00:30]} 8. cxd5 {[%emt 0:00:30]} cxd5 {[%emt 0:00:30]} 9. Nb5 {[%emt 0:00:30]} e4 {[%emt 0:00:30]} 10. Nfd4 {[%emt 0:00:30]} Be7 {[%emt 0:00:30]} 11. Rc1 {[%emt 0:00:30]} a6 {[%emt 0:00:30]} 12. Nc3 {[%emt 0:00:30]} Nbd7 {[%emt 0:00:30]} 13. Nf5 {[%emt 0:00:30]} Bb4 {[%emt 0:00:30]} 14. g4 {[%emt 0:00:30]} Ne5 {[%emt 0:00:30]} 15. a3 {[%emt 0:00:30]} Ba5 {[%emt 0:00:30]} 16. Nxd5 {[%emt 0:00:30]} Bxf5 {[%emt 0:00:30]} 17. Nxf6+ {[%emt 0:00:30]} Qxf6 {[%emt 0:00:30]} 18. gxf5 {[%emt 0:00:30]} Qxf5 {[%emt 0:00:30]} 19. Bxe5 {[%emt 0:00:30]} Qxe5 {[%emt 0:00:30]} 20. b4 {[%emt 0:00:30]} Bb6 {[%emt 0:00:30]} 21. d4 {[%emt 0:00:30]} exd3 {[%emt 0:00:30]} 22. Qxd3 {[%emt 0:00:30]} Rfd8 {[%emt 0:00:30]} 23. Qc3 {[%emt 0:00:30]} Qxc3+ {[%emt 0:00:30]} 24. Rxc3 {[%emt 0:00:30]} a5 {[%emt 0:00:30]} 25. O-O {[%emt 0:00:30]} axb4 {[%emt 0:00:30]} 26. axb4 {[%emt 0:00:30]} Ra4 {[%emt 0:00:30]} 27. Rd1 {[%emt 0:00:30]} Kf8 {[%emt 0:00:30]} 28. Rxd8+ Bxd8 29. b5 {[%emt 0:01:00]} Ba5 {[%emt 0:01:00]} 30. Rc8+ {[%emt 0:00:30]} Ke7 {[%emt 0:00:30]} 31. Kg2 {[%emt 0:00:30]} 1/2-1/2

[Event "6th Uppsala Young Champions 2019"]
[Site "Uppsala"]
[Date "2019.10.29"]
[Round "7.6"]
[White "Palozza, Christian"]
[Black "Fjallheim, Leif Reinert"]
[Result "1-0"]
[ECO "E62"]
[WhiteElo "2187"]
[BlackElo "1985"]
[Annotator "ChessBase"]
[PlyCount "127"]
[EventDate "2019.10.25"]
[EventType "swiss"]
[EventCountry "SWE"]
[SourceTitle "playchess.com"]
[Source "ChessBase"]
[SourceQuality "1"]
[TimeControl "5400+30"]

1. d4 {[%emt 0:00:00]} Nf6 {[%emt 0:00:00]} 2. c4 {[%emt 0:00:00]} g6 {[%emt 0:00:00]} 3. Nf3 {[%emt 0:00:00]} Bg7 {[%emt 0:00:41]} 4. g3 {[%emt 0:00:00]} d6 {[%emt 0:00:32]} 5. Bg2 {[%emt 0:00:00]} O-O {[%emt 0:00:38]} 6. Nc3 {[%emt 0:00:04]} Nc6 {[%emt 0:01:36]} 7. O-O {[%emt 0:00:15]} Bg4 {[%emt 0:00:35]} 8. h3 {[%emt 0:02:03]} Bxf3 {[%emt 0:00:30]} 9. Bxf3 {[%emt 0:00:50]} Nd7 {[%emt 0:01:07]} 10. e3 {[%emt 0:11:41]} Rb8 {[%emt 0:04:40]} 11. Rb1 {[%emt 0:12:39]} e5 {[%emt 0:07:07]} 12. d5 {[%emt 0:00:36]} Ne7 {[%emt 0:00:11]} 13. Be2 {[%emt 0:05:33]} f5 {[%emt 0:02:03]} 14. f4 {[%emt 0:00:47]} exf4 {[%emt 0:02:26]} 15. exf4 {[%emt 0:01:33]} Bxc3 {[%emt 0:12:59]} 16. bxc3 {[%emt 0:00:01]} b6 {[%emt 0:00:15]} 17. Be3 {[%emt 0:04:49]} Rf7 {[%emt 0:06:00]} 18. Bd4 {[%emt 0:01:13]} Nc5 {[%emt 0:03:03]} 19. g4 {[%emt 0:04:45]} Qd7 {[%emt 0:01:37]} 20. g5 {[%emt 0:04:12]} Re8 {[%emt 0:01:10]} 21. h4 {[%emt 0:02:55]} Ne4 {[%emt 0:07:05]} 22. Qd3 {[%emt 0:13:52]} Qa4 {[%emt 0:10:29]} 23. Rb2 {[%emt 0:03:18]} c6 {[%emt 0:10:00]} 24. h5 {[%emt 0:06:14]} c5 {[%emt 0:08:00]} 25. Be3 {[%emt 0:00:27]} Ng3 {[%emt 0:01:20]} 26. Bd1 {[%emt 0:04:50]} Qa3 {[%emt 0:03:01]} 27. Rb3 {[%emt 0:01:14]} Qa6 {[%emt 0:01:33]} 28. hxg6 {[%emt 0:04:50]} Nxg6 {[%emt 0:01:57]} 29. Rf3 {[%emt 0:00:33]} Ne4 {[%emt 0:00:51]} 30. Rb2 {[%emt 0:00:55]} Qa3 {[%emt 0:01:12]} 31. Rc2 {[%emt 0:00:35]} Kf8 {[%emt 0:03:46]} 32. Bc1 {[%emt 0:00:47]} Qa6 {[%emt 0:00:31]} 33. Rh3 {[%emt 0:01:41]} Ree7 {[%emt 0:04:17]} 34. Rch2 {[%emt 0:00:58]} Rg7 {[%emt 0:02:13]} 35. Kf1 {[%emt 0:01:08]} Ke8 {[%emt 0:00:46]} 36. Bh5 {[%emt 0:01:05]} Kf8 {[%emt 0:01:01]} 37. Bf3 {[%emt 0:01:06]} Qc8 {[%emt 0:00:30]} 38. Rh6 {[%emt 0:01:57]} Qe8 {[%emt 0:00:29]} 39. Kg2 {[%emt 0:00:25]} Qa4 {[%emt 0:01:09]} 40. Kh3 {[%emt 0:01:42]} Qd7 {[%emt 0:00:25]} 41. Re2 {[%emt 0:01:53]} Qe8 {[%emt 0:00:47]} 42. Kg2 {[%emt 0:00:09]} Kg8 {[%emt 0:00:56]} 43. Rh1 {[%emt 0:00:46]} Kf8 {[%emt 0:00:40]} 44. Kh3 {[%emt 0:00:43]} Kg8 {[%emt 0:01:03]} 45. Kg2 {[%emt 0:00:52]} Kf8 {[%emt 0:00:14]} 46. Rh2 {[%emt 0:00:39]} Kg8 {[%emt 0:00:40]} 47. Rh6 {[%emt 0:02:16]} Kf8 {[%emt 0:00:13]} 48. Bh5 {[%emt 0:00:59]} Qd7 {[%emt 0:00:34]} 49. Qh3 {[%emt 0:00:25]} Qe8 {[%emt 0:00:45]} 50. Qxf5+ {[%emt 0:01:26]} Rgf7 {[%emt 0:00:37]} 51. Bxg6 {[%emt 0:01:03]} Rxf5 {[%emt 0:00:29]} 52. Bxe8 {[%emt 0:00:01]} Kxe8 {[%emt 0:00:12]} 53. Rh1 {[%emt 0:01:18]} Rff7 {[%emt 0:00:48]} 54. Rh3 {[%emt 0:01:29]} Kd7 {[%emt 0:00:45]} 55. Rf3 {[%emt 0:00:37]} a6 {[%emt 0:00:22]} 56. f5 {[%emt 0:00:34]} Re5 {[%emt 0:00:07]} 57. Bf4 {[%emt 0:00:37]} Nxg5 {[%emt 0:00:36]} 58. Bxe5 {[%emt 0:01:08]} Nxf3 {[%emt 0:00:06]} 59. Kxf3 {[%emt 0:00:15]} dxe5 {[%emt 0:00:23]} 60. Ke4 {[%emt 0:00:05]} Kd6 {[%emt 0:00:18]} 61. Rh2 {[%emt 0:00:15]} Re7 {[%emt 0:01:37]} 62. Rh6+ {[%emt 0:00:05]} Kd7 {[%emt 0:00:04]} 63. Rxb6 {[%emt 0:00:07]} a5 {[%emt 0:00:52]} 64. Rb7+ {[%emt 0:00:10]} 1-0

[Event "6th Uppsala Young Champions 2019"]
[Site "Uppsala"]
[Date "2019.10.29"]
[Round "7.7"]
[White "Nilsson, Joakim"]
[Black "Narva, David"]
[Result "1-0"]
[ECO "E61"]
[WhiteElo "2305"]
[BlackElo "1979"]
[Annotator "ChessBase"]
[PlyCount "83"]
[EventDate "2019.10.25"]
[EventType "swiss"]
[EventCountry "SWE"]
[SourceTitle "playchess.com"]
[Source "ChessBase"]
[SourceQuality "1"]
[TimeControl "5400+30"]

1. d4 {[%emt 0:00:00]} Nf6 {[%emt 0:00:00]} 2. c4 {[%emt 0:00:00]} g6 {[%emt 0:00:00]} 3. Nf3 {[%emt 0:00:33]} Bg7 {[%emt 0:00:00]} 4. Nc3 {[%emt 0:00:21]} O-O {[%emt 0:00:05]} 5. Bg5 {[%emt 0:00:13]} d6 {[%emt 0:03:11]} 6. e3 {[%emt 0:02:03]} Nbd7 {[%emt 0:13:15]} 7. Be2 {[%emt 0:00:23]} h6 {[%emt 0:00:39]} 8. Bh4 {[%emt 0:00:14]} e5 {[%emt 0:02:55]} 9. O-O {[%emt 0:04:33]} g5 {[%emt 0:01:28]} 10. Bg3 {[%emt 0:01:52]} Nh5 {[%emt 0:04:32]} 11. dxe5 {[%emt 0:01:46]} Nxg3 {[%emt 0:00:48]} 12. hxg3 {[%emt 0:00:01]} Nxe5 {[%emt 0:05:31]} 13. Qc2 {[%emt 0:00:53]} f5 {[%emt 0:08:15]} 14. Rad1 {[%emt 0:05:22]} c6 {[%emt 0:06:51]} 15. Rd2 {[%emt 0:09:56]} Nxf3+ {[%emt 0:04:43]} 16. Bxf3 {[%emt 0:00:42]} Be5 {[%emt 0:01:14]} 17. Be2 {[%emt 0:09:44]} g4 {[%emt 0:01:49]} 18. Rfd1 {[%emt 0:12:40]} Qf6 {[%emt 0:08:08]} 19. Bf1 {[%emt 0:01:11]} h5 {[%emt 0:03:52]} 20. Ne2 {[%emt 0:02:04]} Qg5 {[%emt 0:11:54]} 21. Rxd6 {[%emt 0:03:49]} Bxd6 {[%emt 0:01:12]} 22. Rxd6 {[%emt 0:00:03]} Rd8 {[%emt 0:00:38]} 23. c5 {[%emt 0:05:04]} Rxd6 {[%emt 0:03:08]} 24. cxd6 {[%emt 0:00:25]} Qf6 {[%emt 0:01:39]} 25. Qc5 {[%emt 0:04:16]} Be6 {[%emt 0:01:14]} 26. Nd4 {[%emt 0:02:49]} Bd5 {[%emt 0:01:25]} 27. Bd3 {[%emt 0:01:14]} b6 {[%emt 0:02:11]} 28. Qc2 {[%emt 0:00:21]} Qxd6 {[%emt 0:00:38]} 29. Nxf5 {[%emt 0:01:40]} Qc5 {[%emt 0:01:02]} 30. Qa4 {[%emt 0:00:43]} Qc1+ {[%emt 0:02:49]} 31. Kh2 {[%emt 0:00:30]} Qxb2 {[%emt 0:00:30]} 32. Qf4 {[%emt 0:01:06]} Qf6 {[%emt 0:00:07]} 33. e4 {[%emt 0:00:30]} Bf7 {[%emt 0:00:30]} 34. e5 {[%emt 0:00:30]} Qe6 {[%emt 0:00:30]} 35. Qg5+ {[%emt 0:00:30]} Kf8 {[%emt 0:00:30]} 36. Qg7+ {[%emt 0:00:30]} Ke8 {[%emt 0:00:30]} 37. Nd6+ {[%emt 0:00:30]} Ke7 {[%emt 0:00:30]} 38. Qg5+ {[%emt 0:00:30]} Kf8 {[%emt 0:00:30]} 39. Bc4 {[%emt 0:00:30]} Qg6 {[%emt 0:00:30]} 40. Qf4 {[%emt 0:00:30]} Kg7 {[%emt 0:00:30]} 41. Bxf7 {[%emt 0:00:30]} Qh7 {[%emt 0:00:30]} 42. Qf6+ {[%emt 0:00:30]} 1-0